Workbook

Sheet datosvcombu
A1: DATOS DEL VEHÍCULO DE COMBUSTIÓN
A2: Categoría:
A3: Combustible:
A4: Consumo medio de combustible (l/100 km):
A5: Km recorridos al año:

Sheet datosvelec
A1: DATOS DEL VEHÍCULO ELÉCTRICO
A2: Nº de vehículos para los que solicita la ayuda:
A3: Categoría:
A4: ¿Conoce el consumo medio de energía de su vehículo eléctrico?:
A5: Consumo medio de energía (kWh/100 km):
A6: Capacidad de la batería (Kwh):
A7: Autonomía del vehículo eléctrico (km):

Sheet resultados
A1: DATOS DEL VEHÍCULO DE COMBUSTIÓN | E1: DATOS DEL VEHÍCULO ELÉCTRICO
A2: Categoría: | B2: =datosvcombu!B2 -> 0 | E2: Nº de vehículos para los que solicita la ayuda: | F2: =datosvelec!B2 -> 0
A3: Combustible: | B3: =datosvcombu!B3 -> 0 | E3: Categoría: | F3: =datosvelec!B3 -> 0
A4: Consumo medio de combustible (l/100 km): | B4: =datosvcombu!B4 -> 0 | E4: ¿Conoce el consumo medio de energía de su vehículo eléctrico?: | F4: =datosvelec!B4 -> 0
A5: Km recorridos al año: | B5: =datosvcombu!B5 -> 0 | E5: Consumo medio de energía (kWh/100 km): | F5: =datosvelec!B5 -> 0
E6: Capacidad de la batería (Kwh): | F6: =datosvelec!B6 -> 0
E7: Autonomía del vehículo eléctrico (km): | F7: =datosvelec!B7 -> 0
A9: RESULTADOS VEHÍCULO DE COMBUSTIÓN | E9: RESULTADOS VEHÍCULO ELÉCTRICO
A10: Consumo anual (litros): | B10: =B$4*B$5/100 -> 0.000 | E10: Consumo anual (litros): | F10: -
A11: Consumo enérgético anual del vehículo (kWh): | B11: =IF(B$3= listas!A18, B$4*B$5*(datos!$C$21/1000)*datos!$C$23/1000000, B$4*B$5*(datos!$C$22/1000)*datos!$C$23/1000000) -> 0.000 | E11: Consumo enérgético anual del vehículo (kWh): | F11: =F5/100*B5 -> 0.000
A12: Energía final anual (tep/año): | B12: =B11/datos!$C$23 -> 0.000 | E12: Energía final anual (tep/año): | F12: =F11/(datos!$C$23*datos!$C$24) -> 0.000
A13: Energía primaria anual (tep/año): | B13: =B12*datos!C13 -> 0.000 | E13: Energía primaria anual (tep/año): | F13: =F12*datos!C12 -> 0.000
A14: Emisiones anuales de CO2 asociadas al uso del vehículo: | B14: =IF(resultados!B3=listas!A18, B13*datos!C17, B13*datos!C18) -> 0.000 | E14: Emisiones anuales de CO2 asociadas al uso del vehículo: | F14: =F13*datos!C16 -> 0.000
A17: AHORRO ENERGÉTICO Y REDUCCIÓN DE EMISIONES DE CO2
A19: Ahorro por cada vehículo | E19: Ahorro total de la actuación
A20: Ahorro de energía final (tep/año): | B20: =ROUND(B12-F12, 3) -> 0.000 | E20: Ahorro de energía final (tep/año): | F20: =F$2*B20 -> 0.000
A21: Ahorro de energía primaria (tep/año): | B21: =ROUND(B13-F13, 3) -> 0.000 | E21: Ahorro de energía primaria (tep/año): | F21: =F$2*B21 -> 0.000
A22: Reducción de emisiones de CO2 (tCO2/año): | B22: =ROUND(B14-F14, 3) -> 0.000 | E22: Reducción de emisiones de CO2 (tCO2/año): | F22: 0.000

Sheet listas
A1: Categorías de vehículos
A2: Turismo M1. Vehículo de motor concebido y fabricado principalmente para el transporte de personas y su equipaje, que tenga, como máximo, ocho plazas de asiento además de la del conductor. No dispondrá de ningún espacio para viajeros de pie.
A3: Autobus o autocar M2. Vehículo de motor concebido y fabricado principalmente para el transporte de personas y su equipaje, que tenga más de ocho plazas de asiento además de la del conductor y cuya masa máxima en carga técnicamente admisible (MMTA) no sea superior a 5 toneladas. Podrá tener, además de las plazas de asiento, espacio para viajeros de pie.
A4: Autobus o autocar M3. Vehículo de motor concebido y fabricado principalmente para el transporte de personas y su equipaje, que tenga más de ocho plazas de asiento además de la del conductor y cuya masa máxima en carga técnicamente admisible (MMTA) sea superior a 5 toneladas. Podrá tener espacio para viajeros de pie.
A5: Furgoneta o camión ligero N1. Vehículo a motor concebido y fabricado principalmente para el transporte de mercancías, y cuya masa máxima en carga técnicamente admisible (MMTA) no sea superior a 3,5 toneladas.
A6: Furgón o camión ligero N2. Vehículo a motor concebido y fabricado principalmente para el transporte de mecancías y cuya masa máxima en carga técnicamente admisible (MMTA) sea superior a 3,5 toneladas, pero no a 12 toneladas.
A7: Furgón o camión N3. Vehículo a motor concebido y fabricado principalmente para el transporte de mercancías y cuya masa máxima en carga técnicamente admisible (MMTA) sea superior a 12 toneladas.
A8: L2e. Vehículo de tres ruedas con una velocidad máxima por construcción no superior a 45 m/h, y potencia máxima inferior o igual a 4 kW.
A9: L3e Motocicleta. Vehículo de dos ruedas sin sidecar y con una velocidad máxima por construcción superior a 45 km/h.
A10: L6e Cuadriciclo ligero: cuya masa en vacío sea inferior o igual a 350 kg., no incluida la masa de las baterías, cuya velocidad máxima por construcción sea inferior o igual a 45 km/h, y potencia máxima inferior o igual a 4 kW.
A11: L7e Cuadriciclo: cuya masa en vacío sea inferior o igual a 400 kg. (550 kg. para vehíclos destinados al transporte de mercancías), no incluida la masa de las baterías, y potencia máxima inferior o igual a 15 kW.
A17: Combustible que utiliza el vehículo de combustión | C17: Opciones | E17: Categorías de vehículos
A18: Diésel | C18: Sí | E18: Turismo M1
A19: Gasolina | C19: No | E19: Autobús o autocar M2
E20: Autobús o autocar M3
A21: Nº de vehículos para los que solicita la ayuda: | E21: Furgoneta o camión ligero N1
A22: 1 | E22: Furgón o camión ligero N2
A23: 2 | E23: Furgón o camión N3
A24: 3 | E24: L2e vehículo de 3 ruedas
A25: 4 | E25: L3e Motocicleta
E26: L6e Cuadriciclo ligero
E27: L7e Cuadriciclo

Sheet datos
C3: Consumo Wh/km y l/100 km | D3: km anuales | E3: Consumo anual (litros) | F3: Consumo enérgético anual del vehículo (kwh) | G3: Energía final anual (Tep) | H3: Energía primaria anual (Tep) | I3: Emisiones anuales de CO2 asociadas al uso del vehículo
B4: Vehículo eléctrico | C4: 170.00 | D4: 15,000 | E4: - | F4: =D4*C4/1000 -> 2,550 | G4: =F4/(C24*C23) -> 0.244 | H4: =G4*C12 -> 0.573 | I4: =H4*C16 -> 2.198
B5: Vehículo Diesel | C5: 7.00 | D5: 15,000 | E5: =C5*D5/100 -> 1,050 | F5: =C5*D5*8.326*11630/1000000 -> 10,167 | G5: =F5/C23 -> 0.874 | H5: =G5*C13 -> 0.979 | I5: =H5*C17 -> 2.996
B6: Vehículo Gasolina | C6: 8.00 | D6: 15,000 | E6: =C6*D6/100 -> 1,200 | F6: =C6*D6*7.635*11630/1000000 -> 10,655 | G6: =F6/C23 -> 0.916 | H6: =G6*C13 -> 1.026 | I6: =H6*C18 -> 2.955
B8: Ahorro con respecto al diesel | F8: =F5-F4 -> 7,617 | G8: =G5-G4 -> 0.631 | H8: =H5-H4 -> 0.407 | I8: =I5-I4 -> 0.798
B9: Ahorro con respecto a la gasolina | F9: =F6-F4 -> 8,105 | G9: =G6-G4 -> 0.673 | H9: =H6-H4 -> 0.454 | I9: =I6-I4 -> 0.757
B12: Factor de conversión para transformar energía eléctrica final en primaria | C12: 2.35
B13: Factor de conversión para transformar energía de diesel/gasolina final en primaria | C13: 1.12
B15: Factores de conversión para calcular emisiones CO2 (tCO2/tep)
B16: Energía eléctrica | C16: 3.84
B17: Diesel | C17: 3.06
B18: Gasolina | C18: 2.88
B20: Equivalencias consideradas
B21: PCI Diesel (Kcal/litro) | C21: 8326
B22: PCI Gasolinas (Kcal/litro) | C22: 7635
B23: 1 tep | C23: 11630 | D23: Kwh
B24: Rendimiento medio de los cargadores de VE | C24: 0.9

Sheet formulario
